fUSD/lending_fUSD_20240624
["ID","MTS","AMOUNT","RATE_DAILY","PERIOD"]
[330224092,1719190253256,-150.0,0.00014824,2]
[330224093,1719190253265,-150.0,0.0001483,2]
[330224094,1719190253274,-1576.40643,0.0001483,2]
[330224095,1719190253283,-150.0,0.00014831,2]
[330224096,1719190253292,-5800.0,0.00014832,2]
[330224097,1719190253302,-150.0,0.00014835,2]
[330224098,1719190253310,-150.0,0.00014836,2]
[330224099,1719190253320,-150.0,0.00014839,2]
[330224100,1719190253329,-150.0,0.00014839,2]
[330224101,1719190253338,-5800.0,0.00014841,2]
[330224102,1719190253347,-150.0,0.00014841,2]
[330224103,1719190253356,-150.0,0.00014847,2]
[330224104,1719190253365,-5800.0,0.00014849,2]
[330224105,1719190253375,-5800.0,0.00014858,2]
[330224106,1719190253384,-347.008189,0.00014858,2]
[330224107,1719190253393,-151.0,0.00014858,2]
[330224108,1719190253401,-150.0,0.00014859,2]
[330224109,1719190253411,-150.0,0.00014865,2]
[330224110,1719190253420,-150.0,0.00014865,2]
[330224111,1719190253429,-5800.0,0.00014866,2]
[330224112,1719190253438,-150.0,0.00014869,2]
[330224113,1719190253448,-150.0,0.00014869,2]
[330224114,1719190253457,-150.0,0.00014871,2]
[330224115,1719190253466,-5800.0,0.00014874,2]
[330224116,1719190253475,-5800.0,0.00014883,2]
[330224117,1719190253485,-150.0,0.00014884,2]
[330224118,1719190253493,-5800.0,0.00014891,2]
[330224119,1719190253503,-270.30461064,0.00014899,2]
[330224120,1719190253512,-5800.0,0.000149,2]
[330224121,1719190253521,-178.7802425,0.000149,2]
[330224122,1719190253530,-211.43806312,0.000149,2]
[330224123,1719190253539,-5800.0,0.000149,2]
[330224124,1719190253549,-201.65732966,0.000149,2]
[330224125,1719190253558,-260.93861282,0.000149,2]
[330224126,1719190253567,-262.34729966,0.000149,2]
[330224127,1719190253577,-2798.97253558,0.000149,2]
[330224128,1719190253587,-150.0,0.00014913,2]
[330224129,1719190253596,-150.0,0.00014914,2]
[330224130,1719190253606,-150.0,0.00014924,2]
[330224131,1719190253615,-150.0,0.00014925,2]
[330224132,1719190253625,-150.0,0.00014928,2]
[330224133,1719190253634,-150.0,0.00014948,2]
[330224134,1719190253643,-150.0,0.00014952,2]
[330224135,1719190253653,-150.0,0.00014954,2]
[330224136,1719190253663,-150.0,0.00014954,2]
[330224137,1719190253672,-150.0,0.00014959,2]
[330224138,1719190253682,-150.0,0.00014969,2]
[330224139,1719190253691,-150.0,0.0001497,2]
[330224140,1719190253702,-150.0,0.00014989,2]
[330224141,1719190253715,-151.0,0.0001499,2]
[330224142,1719190253725,-995.7589157,0.0001499,2]
[330224143,1719190253735,-772.2789318,0.0001499,2]
[330224144,1719190253744,-548.7989478,0.0001499,2]
[330224145,1719190253754,-220.852586,0.0001499,2]
[330224146,1719190253763,-220.852586,0.0001499,2]
[330224147,1719190253773,-151.0,0.0001499,2]
[330224148,1719190253783,-465.2986282,0.0001499,2]
[330224149,1719190253792,-504.4371648,0.0001499,2]
[330224150,1719190253802,-543.5757014,0.0001499,2]
[330224151,1719190253812,-2555.1587083,0.0001499,2]
[330224152,1719190253821,-2770.0855673,0.0001499,2]
[330224153,1719190253830,-2985.0124262,0.0001499,2]
[330224154,1719190253839,-6985.507104,0.0001499,2]
[330224155,1719190253848,-4712.3747099,0.0001499,2]
[330224156,1719190253857,-2439.2423158,0.0001499,2]
[330224157,1719190253867,-17322.23243256,0.00014991,2]
[330224158,1719190253876,-585869.21105697,0.00015,2]
[330224159,1719190253885,-3964.09852975,0.00015,2]
[330224160,1719190253895,-490.0,0.00015,2]
[330224161,1719190253904,-170.05064749,0.00015,2]
[330224162,1719190253913,-925486.17996956,0.00015,2]
[330224163,1719190253922,-5000.0,0.00015,2]
[330224164,1719190253931,-663681.64314867,0.00015,2]
[330224165,1719190253940,-165.57940927,0.00015,2]
[330224166,1719190253949,-500.89,0.00015,2]
[330224167,1719190253959,-2149.69373643,0.00015,2]
[330224168,1719190253969,-1000.0,0.00015,3]
[330224169,1719190253978,-5705179.47,0.00015,2]
[330224170,1719190253989,-221.0,0.00015,2]
[330224171,1719190253998,-221.0,0.00015,2]
[330224172,1719190254007,-221.0,0.00015,2]
[330224173,1719190254017,-221.0,0.00015,2]
[330224174,1719190254030,-221.0,0.00015,2]
[330224175,1719190254040,-221.0,0.00015,2]
[330224176,1719190254049,-221.0,0.00015,2]
[330224177,1719190254059,-221.0,0.00015,2]
[330224178,1719190254068,-221.0,0.00015,2]
[330224179,1719190254077,-217.0,0.00015,2]
[330224180,1719190254086,-217.0,0.00015,2]
[330224181,1719190254095,-217.0,0.00015,2]
[330224182,1719190254104,-217.0,0.00015,2]
[330224183,1719190254114,-217.0,0.00015,2]
[330224184,1719190254123,-217.0,0.00015,2]
[330224185,1719190254132,-203.0,0.00015,2]
[330224186,1719190254146,-203.0,0.00015,2]
[330224187,1719190254155,-203.0,0.00015,2]
[330224188,1719190254166,-203.0,0.00015,2]
[330224189,1719190254175,-203.0,0.00015,2]
[330224190,1719190254184,-203.0,0.00015,2]
[330224191,1719190254194,-203.0,0.00015,2]
[330224192,1719190254203,-203.0,0.00015,2]
[330224193,1719190254212,-203.0,0.00015,2]
[330224194,1719190254221,-203.0,0.00015,2]
[330224195,1719190254230,-203.0,0.00015,2]
[330224196,1719190254243,-203.0,0.00015,2]
[330224197,1719190254252,-203.0,0.00015,2]
[330224198,1719190254262,-203.0,0.00015,2]
[330224199,1719190254274,-218.0,0.00015,2]
[330224200,1719190254284,-218.0,0.00015,2]
[330224201,1719190254293,-720.0,0.00015,2]
[330224202,1719190254303,-151.0,0.00015,2]
[330224203,1719190254312,-151.0,0.00015,2]
[330224204,1719190254321,-151.0,0.00015,2]
[330224205,1719190254330,-151.0,0.00015,2]
[330224206,1719190254339,-9352.0,0.00015,10]
[330224207,1719190254349,-6409.0,0.00015,2]
[330224208,1719190254359,-347.008189,0.00015,2]
[330224209,1719190254368,-347.008189,0.00015,2]
[330224210,1719190254377,-207426.67349274,0.00015,2]
[330224211,1719190254387,-347.008198,0.00015,2]
[330224212,1719190254396,-220.852586,0.00015,2]
[330224213,1719190254405,-220.852587,0.00015,2]
[330224214,1719190254414,-151.0,0.00015,2]
[330224215,1719190254423,-150.0,0.00015011,2]
[330224216,1719190254433,-715.63640315,0.00015051,2]
[330224217,1719190254442,-150.0,0.00015053,2]
[330224218,1719190254451,-150.0,0.00015058,2]
[330224219,1719190254461,-150.0,0.00015062,2]
[330224220,1719190254470,-500.0,0.00015068,2]
[330224221,1719190254480,-895.93,0.00015068,2]
[330224222,1719190254492,-300.0,0.00015068,2]
[330224223,1719190254502,-150.0,0.00015084,2]
[330224224,1719190254511,-6017.9124307,0.00015095,2]
[330224225,1719190254520,-299.77,0.00015123,2]
[330224226,1719190254529,-270.30461064,0.00015149,2]
[330224227,1719190254538,-150.0,0.00015313,2]
[330224228,1719190254547,-150.0,0.00015356,2]
[330224229,1719190254556,-270.30461064,0.00015399,2]
[330224230,1719190254566,-6017.9124307,0.00015399,2]
[330224231,1719190254575,-151.0,0.00015496,2]
[330224232,1719190254585,-150.0,0.00015499,2]
[330224233,1719190254594,-17322.23243256,0.00015536,2]
[330224234,1719190254603,-827.057,0.00015549,2]
[330224235,1719190254613,-150.0,0.00015561,2]
[330224236,1719190254622,-150.0,0.00015677,2]
[330224237,1719190254631,-150.0,0.000157,2]
[330224238,1719190254641,-895.93,0.00015753,2]
[330224239,1719190254651,-150.0,0.00015758,2]
[330224240,1719190254660,-134.4172218,0.00015767,2]
[330224241,1719190254670,-1242.156,0.00015767,2]
[330224242,1719190254828,-150.0,0.00015767,2]
[330224243,1719190254839,-186.85,0.00015782,2]
[330224244,1719190254849,-150.0,0.00015783,2]
[330224245,1719190254859,-150.0,0.00015819,2]
[330224246,1719190254868,-168.17,0.00015831,2]
[330224247,1719190254878,-164.66,0.00015831,2]
[330224248,1719190254887,-155.0,0.00015854,2]
[330224249,1719190254897,-150.0,0.00015871,2]
[330224250,1719190254907,-500.0,0.0001589,2]
[330224251,1719190254916,-152.0,0.00015897,3]
[330224252,1719190254926,-1000.0,0.000159,3]
[330224253,1719190254935,-150.0,0.00015921,2]
[330224254,1719190254944,-152.0,0.00015938,4]
[330224255,1719190254953,-150.0,0.00015961,2]
[330224256,1719190254963,-150.0,0.00015975,2]
[330224257,1719190254972,-152.0,0.0001598,5]
[330224258,1719190254982,-12747.94565031,0.00016,2]
[330224259,1719190254993,-500.0,0.00016,2]
[330224260,1719190255003,-1000.0,0.00016,3]
[330224261,1719190255014,-202.517411,0.00016,2]
[330224262,1719190255023,-360.0,0.00016016,2]
[330224263,1719190255033,-152.0,0.00016021,6]
[330224264,1719190255043,-152.0,0.00016044,2]
[330224265,1719190255052,-150.0,0.00016047,2]
[330224266,1719190255062,-152.0,0.00016062,7]
[330224267,1719190255072,-150.0,0.00016074,2]
[330224268,1719190255081,-1576.40643,0.0001608,2]
[330224269,1719190255091,-17322.23243256,0.00016082,2]
[330224270,1719190255101,-150.0,0.00016094,2]
[330224271,1719190255110,-152.0,0.00016103,8]
[330224272,1719190255120,-150.0,0.00016119,2]
[330224273,1719190255129,-640.0,0.00016126,2]
[330224274,1719190255139,-152.0,0.00016144,9]
[330224275,1719190255148,-502.16,0.00016158,2]
[330224276,1719190255158,-150.0,0.0001616,2]
[330224277,1719190255167,-152.0,0.00016185,10]
[330224278,1719190255176,-150.0,0.00016191,2]
[330224279,1719190255186,-152.0,0.00016227,11]
[330224280,1719190255195,-152.0,0.00016268,12]
[330224281,1719190255204,-150.0,0.00016307,2]
[330224282,1719190255213,-152.0,0.00016309,13]
[330224283,1719190255223,-150.0,0.00016315,2]
[330224284,1719190255235,-152.0,0.0001635,14]
[330224285,1719190255244,-150.0,0.00016378,2]
[330224286,1719190255254,-152.0,0.00016391,15]
[330224287,1719190255264,-152.0,0.00016433,16]
[330224288,1719190255274,-172.5,0.00016438,2]
[330224289,1719190255284,-895.93,0.00016438,2]
[330224290,1719190255293,-300.0,0.00016438,2]
[330224291,1719190255302,-152.0,0.00016474,17]
[330224292,1719190255312,-150.0,0.00016488,2]
[330224293,1719190255321,-6071.74230408,0.000165,2]
[330224294,1719190255331,-152.0,0.00016515,18]
[330224295,1719190255340,-150.0,0.00016524,2]
[330224296,1719190255349,-150.0,0.00016538,2]
[330224297,1719190255358,-150.0,0.0001654,2]
[330224298,1719190255367,-152.0,0.00016556,19]
[330224299,1719190255377,-150.0,0.00016565,2]
[330224300,1719190255387,-150.0,0.00016575,2]
[330224301,1719190255396,-297.0,0.00016592,2]
[330224302,1719190255406,-152.0,0.00016597,20]
[330224303,1719190255416,-150.0,0.00016607,2]
[330224304,1719190255425,-17322.23243256,0.00016627,2]
[330224305,1719190255435,-150.0,0.00016635,2]
[330224306,1719190255444,-299.77,0.00016635,2]
[330224307,1719190255454,-152.0,0.00016638,21]
[330224308,1719190255463,-1500.0,0.00016678,2]
[330224309,1719190255473,-152.0,0.0001668,22]
[330224310,1719190255483,-150.0,0.00016692,2]
[330224311,1719190255496,-150.0,0.00016696,2]
[330224312,1719190255505,-168.17,0.00016702,2]
[330224313,1719190255518,-500.0,0.00016712,2]
[330224314,1719190255529,-172.5,0.00016712,2]
[330224315,1719190255539,-152.0,0.00016721,23]
[330224316,1719190255548,-1741.76,0.00016722,2]
[330224317,1719190255559,-150.0,0.00016742,2]
[330224318,1719190255568,-150.0,0.00016757,2]
[330224319,1719190255578,-150.0,0.00016757,2]
[330224320,1719190255589,-152.0,0.00016762,24]
[330224321,1719190255599,-150.0,0.0001678,2]
[330224322,1719190255608,-152.0,0.00016803,25]
[330224323,1719190255618,-150.0,0.00016823,2]
[330224324,1719190255628,-166.42,0.00016838,2]
[330224325,1719190255638,-152.0,0.00016844,26]
[330224326,1719190255648,-150.0,0.00016864,2]
[330224327,1719190255658,-150.0,0.0001688,2]
[330224328,1719190255668,-152.0,0.00016886,27]
[330224329,1719190255678,-1500.0,0.00016903,2]
[330224330,1719190255688,-152.0,0.00016927,28]
[330224331,1719190255697,-150.0,0.0001693,2]
[330224332,1719190255710,-200.0,0.00016959,7]
[330224333,1719190255719,-200.0,0.00016959,7]
[330224334,1719190255729,-200.0,0.00016959,7]
[330224335,1719190255747,-200.0,0.00016959,7]
[330224336,1719190255756,-152.0,0.00016968,29]
[330224337,1719190255765,-369304.55945014,0.00016969,2]
[330224338,1719190256263,-204750.29883418,0.00016969,2]
[330224339,1719190256275,-94435.1859797,0.00016969,2]
[330224340,1719190256286,-2392.04142876,0.00016969,2]
[330224341,1719190256298,-321.20356717,0.00016969,2]
[330224342,1719190256322,-48604.26340448,0.00016969,2]
[330224343,1719190256332,-300.0,0.00016974,2]
[330224344,1719190256342,-1500.0,0.00016979,2]
[330224345,1719190256352,-172.5,0.00016986,2]
[330224346,1719190256361,-354.09,0.00016986,2]
[330224347,1719190256371,-4775.65887434,0.0001699,2]
[330224348,1719190256380,-1000.0,0.00017,3]
[330224349,1719190256390,-1000.0,0.00017,2]
[330224350,1719190256399,-1000.0,0.00017,3]
[330224351,1719190256408,-150.0,0.00017003,2]
[330224352,1719190256418,-1500.0,0.00017015,2]
[330224353,1719190256427,-150.0,0.00017085,2]
[330224354,1719190256436,-300.0,0.00017096,2]
[330224355,1719190256446,-1500.0,0.00017113,2]
[330224356,1719190256455,-150.0,0.00017122,2]
[330224357,1719190256464,-214.54423729,0.00017169,2]
[330224358,1719190256473,-17322.23243256,0.00017173,2]
[330224359,1719190256485,-186.85,0.00017217,2]
[330224360,1719190256495,-150.0,0.00017245,2]
[330224361,1719190256504,-1500.0,0.00017246,2]
[330224362,1719190256513,-172.5,0.0001726,2]
[330224363,1719190256523,-153.36338319,0.00017297,5]
[330224364,1719190256532,-1500.0,0.00017309,2]
[330224365,1719190256541,-150.0,0.00017322,2]
[330224366,1719190256550,-1500.0,0.00017328,2]
[330224367,1719190256559,-1576.40643,0.0001733,2]
[330224368,1719190256569,-150.0,0.00017339,2]
[330224369,1719190256578,-1500.0,0.00017345,2]
[330224370,1719190256754,-1500.0,0.00017355,2]
[330224371,1719190256764,-150.0,0.00017375,2]
[330224372,1719190256775,-1500.0,0.0001739,2]
[330224373,1719190256785,-1500.0,0.0001745,2]
[330224374,1719190256795,-360.0,0.00017472,2]
[330224375,1719190256804,-150.0,0.00017479,2]
[330224376,1719190256814,-150.0,0.00017486,2]
[330224377,1719190256823,-500.0,0.00017534,2]
[330224378,1719190256832,-172.5,0.00017534,2]
[330224379,1719190256841,-1500.0,0.0001754,2]
[330224380,1719190256850,-1500.0,0.00017567,2]
[330224381,1719190256860,-168.17,0.00017573,2]
[330224382,1719190256869,-1500.0,0.0001758,2]
[330224383,1719190256878,-1500.0,0.00017588,2]
[330224384,1719190256887,-150.0,0.00017591,2]
[330224385,1719190256896,-150.0,0.00017606,2]
[330224386,1719190256906,-1500.0,0.0001761,2]
[330224387,1719190256915,-150.0,0.00017618,2]
[330224388,1719190256925,-1500.0,0.00017625,2]
[330224389,1719190256934,-150.0,0.00017666,2]
[330224390,1719190256943,-150.0,0.00017679,2]
[330224391,1719190256953,-1500.0,0.00017686,2]
[330224392,1719190256962,-155.0,0.000177,2]
[330224393,1719190256972,-1500.0,0.00017714,2]
[330224394,1719190256981,-12983.60588913,0.00017718,2]
[330224395,1719190257013,-151.0,0.00014,2]
[330224396,1719190257023,-4338.62654343,0.00017718,2]
[330224397,1719190257032,-150.0,0.00017726,2]
[330224398,1719190257041,-938.04628212,0.00017731,2]
[330224399,1719190257051,-640.0,0.00017739,2]
[330224400,1719190257060,-1500.0,0.00017753,2]
[330224401,1719190257069,-1500.0,0.00017755,2]
[330224402,1719190257078,-150.0,0.00017793,2]
[330224403,1719190257087,-500.0,0.00017808,2]
[330224404,1719190257097,-172.5,0.00017808,2]
[330224405,1719190257106,-150.0,0.00017836,2]
[330224406,1719190257116,-150.0,0.0001784,2]
[330224407,1719190257126,-150.0,0.00017853,2]
[330224408,1719190257135,-150.0,0.00017874,2]
[330224409,1719190257144,-8387.95611672,0.000179,4]
[330224410,1719190257266,-863.2531778,0.000179,4]
[330224411,1719190257277,-547.05596335,0.000179,4]
[330224412,1719190257961,-452.50499957,0.000179,4]
[330224413,1719190258075,-2759.5004898,0.000179,4]
[330224414,1719190258086,-8280.29415686,0.000179,4]
[330224415,1719190258097,-90515.82945995,0.000179,4]
[330224416,1719190258108,-1133.20005046,0.000179,4]
[330224417,1719190258119,-30500.7124516,0.000179,4]
[330224418,1719190258144,-11334.49103469,0.000179,4]
[330224419,1719190258155,-40878.49580362,0.000179,4]
[330224420,1719190258170,-319.7348248,0.000179,4]
[330224421,1719190258181,-1640.91763236,0.000179,4]
[330224422,1719190258192,-1128.66166438,0.000179,4]
[330224423,1719190258203,-1299.7799031,0.000179,4]
[330224424,1719190258214,-856.11111547,0.000179,4]
[330224425,1719190258225,-1372.69354787,0.000179,4]
[330224426,1719190258246,-54248.26351833,0.000179,4]
[330224427,1719190258256,-537.16417105,0.000179,4]
[330224428,1719190258267,-18915.59999999,0.000179,4]
[330224429,1719190258278,-1483.51991344,0.000179,4]
[330224430,1719190258293,-1385.1838,0.000179,4]
[330224431,1719190258304,-1106.252214,0.000179,4]
[330224432,1719190258315,-968.85757747,0.000179,4]
[330224433,1719190258326,-1523.51395288,0.000179,4]
[330224434,1719190259231,-456.95008335,0.0001379,2]
[330224435,1719190259252,-2371.48463968,0.0001379,2]
[330224436,1719190259279,-24643.11268799,0.0001379,2]
[330224437,1719190259291,-350.598,0.0001379,2]
[330224439,1719190273063,254.6,0.00025769,120]
[330224440,1719190275220,544.53,0.00018849,30]
[330224442,1719190595344,5200.0,0.00025,60]
[330224444,1719190939885,499.15,0.00018849,30]
[330224487,1719191432938,-451.17,0.00012414,2]
[330224488,1719191432947,-500.0,0.00012602,2]
[330224489,1719191432956,-500.0,0.00012602,2]
[330224490,1719191432966,-150.0,0.00012658,2]
[330224491,1719191432975,-11014.83,0.00012659,2]
[330224492,1719191432986,-9899.24756434,0.00012659,2]
[330224512,1719191438575,-38018.78188912,0.00012659,2]
[330224513,1719191438588,-499.13350633,0.00012659,2]
[330224514,1719191438600,-25925.36504021,0.00012659,2]
[330224515,1719191438611,-7631.2,0.000138,2]
[330224516,1719191438620,-1553.43495979,0.000138,2]
[330224517,1719191438690,-5958.60504021,0.000138,2]
[330224518,1719191438700,-10000.0,0.000139,2]
[330224519,1719191438710,-1217.61,0.00013991,2]
[330224520,1719191438720,-250.0,0.00013991,2]
[330224521,1719191438729,-10000.0,0.00013991,2]
[330224522,1719191438739,-7645.05,0.0001401,2]
[330224523,1719191438750,-1000.0,0.00014178,2]
[330224524,1719191438760,-500.0,0.00014246,2]
[330224525,1719191438770,-500.0,0.00014246,2]
[330224526,1719191438780,-250.0,0.00014299,2]
[330224527,1719191438790,-155.0,0.00014422,2]
[330224528,1719191438799,-196.32,0.00014423,2]
[330224529,1719191438811,-451.17,0.00014678,2]
[330224530,1719191438821,-14272.61667906,0.00014879,2]
[330224531,1719191438831,-96548.38741907,0.000149,2]
[330224532,1719191438840,-2491.01847886,0.00014988,2]
[330224533,1719191438850,-1370.0,0.00015,9]
[330224534,1719191438859,-155.0,0.0001505,2]
[330224535,1719191438869,-200.0,0.000151,2]
[330224536,1719191438879,-438.00098198,0.00015478,2]
[330224537,1719191438890,-293.82,0.00015555,2]
[330224538,1719191438900,-720.35067502,0.00015668,2]
[330224539,1719191438910,-1000.0,0.00015668,2]
[330224540,1719191438920,-96548.38741898,0.00015669,2]
[330224541,1719191438930,-155.0,0.00015766,2]
[330224542,1719191438940,-163.60172734,0.0001583,2]
[330224543,1719191438950,-167.29,0.00015831,2]
[330224544,1719191438960,-155.0,0.00015854,2]
[330224545,1719191438970,-246.89935216,0.00015889,2]
[330224546,1719191438980,-500.0,0.0001589,2]
[330224547,1719191438990,-500.0,0.0001589,2]
[330224548,1719191439000,-197.40142001,0.0001595,2]
[330224549,1719191439010,-266.05819366,0.0001595,2]
[330224550,1719191439020,-1000.0,0.00015951,2]
[330224551,1719191439030,-202.517411,0.00016,2]
[330224552,1719191439040,-339.46001548,0.00016043,2]
[330224553,1719191439050,-196.32,0.00016226,2]
[330224554,1719191439060,-8731.11518725,0.00016437,2]
[330224555,1719191440294,-764.66534162,0.00016437,2]
[330224556,1719191440306,-890.90712876,0.00016437,2]
[330224557,1719191440455,-3762.41856736,0.00016437,2]
[330224558,1719191440467,-82399.28119399,0.00016437,2]
[330224559,1719191440477,-167.29,0.00016702,2]
[330224560,1719191440487,-164.98,0.00016787,2]
[330224561,1719191440496,-491.56025274,0.00016866,2]
[330224562,1719191440505,-11582.01,0.00016922,2]
[330224563,1719191440515,-293.82,0.00016925,2]
[330224564,1719191440525,-451.17,0.00016941,2]
[330224565,1719191440534,-10334.70730894,0.00016969,2]
[330224566,1719191440543,-254.6,0.00017179,2]
[330224567,1719191440553,-61438.65636231,0.00017206,2]
[330224568,1719191440564,-593.49430624,0.00017206,2]
[330224569,1719191440576,-906.50569376,0.00017206,2]
[330224570,1719191440587,-369.84443724,0.00017206,2]
[330224571,1719191440599,-1429.1512455,0.00017206,2]
[330224572,1719191440610,-1029.18244086,0.00017206,2]
[330224573,1719191440621,-452.51000043,0.00017206,2]
[330224574,1719191440633,-30329.04293264,0.00017206,2]
[330224575,1719191440642,-164.98,0.00017341,2]
[330224576,1719191440651,-3540.9853135,0.00017516,2]
[330224577,1719191440660,-500.0,0.00017534,2]
[330224578,1719191440669,-500.0,0.00017534,2]
[330224579,1719191440678,-167.29,0.00017573,2]
[330224580,1719191440687,-1000.0,0.00017723,2]
[330224581,1719191440696,-476.03554087,0.00017772,2]
[330224582,1719191440705,-525.46881,0.00017874,2]
[330224583,1719191440715,-2828.06320888,0.00017887,2]
[330224584,1719191440724,-166.10992241,0.00017888,2]
[330224585,1719191440733,-850.2238679,0.00017888,2]
[330224586,1719191440742,-151.338867,0.00017888,2]
[330224587,1719191440751,-164.98,0.00017895,2]
[330224588,1719191440761,-408.28056643,0.00017899,2]
[330224589,1719191440774,-504.08999982,0.00017899,2]
[330224590,1719191440785,-378.1299995,0.00017899,2]
[330224591,1719191440797,-529.37778124,0.00017899,2]
[330224592,1719191440809,-1286.6437952,0.00017899,2]
[330224593,1719191440818,-4112.87853256,0.000179,4]
[330224594,1719191440830,-2788.83392788,0.000179,4]
[330224595,1719191440840,-490.0,0.000179,2]
[330224596,1719191440850,-490.0,0.000179,2]
[330224597,1719191440859,-203.72089019,0.00017964,2]
[330224598,1719191440869,-34824.75801934,0.00017974,2]
[330224599,1719191440880,-61723.62939964,0.00017974,2]
[330224600,1719191440890,-114566.7033138,0.00018,2]
[330224601,1719191440901,-88043.2966862,0.00018,2]
[330224602,1719191440911,-1000.0,0.00018,2]
[330224603,1719191440920,-155.0,0.00018,2]
[330224604,1719191440930,-1483.6036546,0.00018,19]
[330224605,1719191440940,-155.0,0.00018,2]
[330224606,1719191440949,-444.00166091,0.00018,2]
[330224607,1719191440959,-954.0,0.00018,2]
[330224608,1719191440968,-200.0,0.00018,2]
[330224609,1719191440977,-196.32,0.00018028,2]
[330224610,1719191440986,-151.0,0.00018082,2]
[330224611,1719191440995,-476.03554087,0.00018224,2]
[330224612,1719191441005,-24686.34963066,0.00018232,2]
[330224613,1719191441015,-151.0,0.00018356,2]
[330224614,1719191441024,-168.17,0.00018444,2]
[330224615,1719191441034,-164.66,0.00018444,2]
[330224616,1719191441043,-167.29,0.00018444,2]
[330224617,1719191441053,-164.98,0.0001845,2]
[330224618,1719191441062,-1023.86256048,0.00018472,2]
[330224619,1719191441072,-1128.48596064,0.00018472,2]
[330224620,1719191441082,-2198.601142,0.00018499,2]
[330224621,1719191441092,-500.0,0.0001863,2]
[330224622,1719191441101,-500.0,0.0001863,2]
[330224623,1719191441112,-151.0,0.0001863,2]
[330224624,1719191441124,-5774.07747752,0.0001867,2]
[330224625,1719191441134,-476.03554087,0.00018676,2]
[330224626,1719191441143,-1263.08088063,0.00018699,2]
[330224627,1719191441154,-48145.00761523,0.000187,2]
[330224628,1719191441165,-9814.42610411,0.000187,2]
[330224629,1719191441305,-24084.56628066,0.000187,2]
[330224630,1719191441314,-2296.05805228,0.000187,2]
[330224631,1719191441323,-1000.0,0.0001871,2]
[330224632,1719191441333,-96548.38741898,0.00018743,2]
[330224633,1719191441343,-1000.0,0.0001877,2]
[330224634,1719191441352,-500.0,0.0001877,2]
[330224635,1719191441361,-1000.0,0.0001877,2]
[330224636,1719191441370,-500.0,0.0001877,2]
[330224637,1719191441380,-660.25476663,0.00018786,2]
[330224638,1719191441389,-163.61123882,0.00018786,2]
[330224639,1719191441398,-269.27286365,0.00018795,2]
[330224640,1719191441407,-831.0590105,0.00018799,2]
[330224641,1719191441416,-1627.92964949,0.00018799,2]
[330224642,1719191441425,-317.74,0.000188,2]
[330224643,1719191441434,-2000.0,0.000188,2]
[330224644,1719191441443,-150.0,0.000188,2]
[330224645,1719191441452,-1004.94,0.000188,2]
[330224646,1719191441461,-482.87871356,0.00018806,2]
[330224647,1719191441471,-526.41386275,0.00018809,2]
[330224648,1719191441480,-155.0,0.00018809,2]
[330224649,1719191441489,-158.83934947,0.00018809,2]
[330224650,1719191441498,-2000.0,0.0001881,2]
[330224651,1719191441507,-264.29329375,0.00018819,2]
[330224652,1719191441520,-158.25040673,0.00018819,2]
[330224653,1719191441529,-155.0,0.00018819,2]
[330224654,1719191441539,-2000.0,0.0001882,2]
[330224655,1719191441548,-2000.0,0.0001883,2]